Cogmind - Beta 14 @@@ ROGUE MODE // 2025.02.28 @ 20:48:25 Player: Footbal Result: Destroyed by H-55 Commando with Assault Rifle Performance ------------- Evolutions (2) 1000 Regions Visited (3) 600 Robots Destroyed (51) 255 Value Destroyed (1437) 1437 Prototype IDs (3) 60 Alien Tech Used (0) 0 Bonus (0) 0 TOTAL SCORE: 3352 Bonus ------- None Cogmind --------- Core Integrity 0/550 Matter 300/300 Energy 185/210 System Corruption 0% Temperature Cool (0) Movement Walking (120) Location -8/Materials Parts ------- > --- POWER (2) -------- Light Nuclear Core Light Angular Momentum Engine > --- PROPULSION (3) --- Aluminum Leg Aluminum Leg Carbon-fiber Leg > --- UTILITY (3) ------ Improved Heat Sink Improved Signal Interpreter Terrain Scan Processor > --- WEAPON (3) ------- Particle Gun Precision Beam Rifle Precision Beam Rifle > --- INVENTORY (5) ---- Aluminum Leg VSS Leg VSS Leg Seismic Detector Ion Cannon Peak State ------------ > --- POWER ------------ Light Nuclear Core Light Angular Momentum Engine > --- PROPULSION ------- Aluminum Leg Aluminum Leg Carbon-fiber Leg > --- UTILITY ---------- Improved Heat Sink Improved Signal Interpreter Terrain Scan Processor > --- WEAPON ----------- Particle Gun Precision Beam Rifle Precision Beam Rifle > --- INVENTORY -------- Aluminum Leg VSS Leg VSS Leg Seismic Detector Ion Cannon [Rating: 32] Favorites ----------- Power Light Ion Engine Engine Light Ion Engine Power Core Light Nuclear Core Propulsion Aluminum Leg Treads Light Treads Leg Aluminum Leg Utility Small Storage Unit Device Terrain Scanner Storage Small Storage Unit Processor Signal Interpreter Protection Improved Light Armor Plating Weapon Assault Rifle Energy Gun Precision Beam Rifle Energy Cannon Ion Cannon Ballistic Gun Assault Rifle Build | -11 -10 -9 -8 ------- Run | Yrd Mat Mat Mat Slots Evolved 4 | . . 2 2 Power 1 | . . . 1 Propulsion 1 | . . 1 . Utility 1 | . . 1 . Weapon 1 | . . . 1 Parts Attached 73 | 8 19 20 26 Power 14 | 1 3 5 5 Engine 8 | 1 3 3 1 Core 6 | . . 2 4 Reactor . | . . . . Propulsion 30 | 3 8 13 6 Treads 2 | 1 . 1 . Leg 28 | 2 8 12 6 Wheel . | . . . . Hover . | . . . . Flight . | . . . . Utility 11 | 1 4 1 5 Device 2 | . . . 2 Storage 1 | 1 . . . Processor 3 | . 1 . 2 Hackware . | . . . . Protection 5 | . 3 1 1 Artifact . | . . . . Weapon 18 | 3 4 1 10 Energy Gun 9 | 2 1 . 6 Energy Cannon 6 | . 1 1 4 Ballistic Gun 3 | 1 2 . . Ballistic Cannon . | . . . . Launcher . | . . . . Special Weapon . | . . . . Impact Weapon . | . . . . Slashing Weapon . | . . . . Piercing Weapon . | . . . . Special Melee Weapon . | . . . . Unidentified Prototypes 1 | . . . 1 Parts Lost 20 | . 2 1 17 Power 6 | . 1 1 4 Propulsion 3 | . . . 3 Utility 4 | . . . 4 Weapon 7 | . 1 . 6 Highest Loss Streak 14 | . 1 1 14 To Critical Strikes . | . . . . Average Slot Usage (%) 96 | . 99 99 85 Engine 8 | . 13 6 1 Core 4 | . . 4 14 Leg 28 | . 28 32 24 Storage 11 | . 14 11 4 Processor 9 | . 7 11 12 Protection 7 | . 6 10 3 Energy Gun 2 | . . . 12 Energy Cannon 9 | . 9 10 7 Ballistic Gun 12 | . 17 11 2 Peak Build Rating 32 | 6 10 24 32 Average Rating 13 | 5 8 18 23 On Entrance 9 | . 6 9 22 Naked Turns . | . . . . Heaviest Build 33 | 12 20 22 33 Greatest Support 37 | 20 20 37 35 Greatest Overweight (x) 2 | 1 . . 2 Average Overweight (x) . | . . . . Largest Inventory Capacity 8 | 8 8 8 8 Average Capacity 7 | 7 8 8 6 Most Carried 8 | 6 8 8 8 Average Carried 7 | 4 7 7 5 Final Capacity 8 | 8 8 8 5 Final Carried 8 | 6 8 8 5 Class Distribution -------------------- 71% | Mutant 22% | Scavenger-Mutant 4% | Tank Dominant Class ---------------- Mutant | -10/Materials Mutant | -9/Materials Scavenger-Mutant | -8/Materials Resources | -11 -10 -9 -8 ----------- Run | Yrd Mat Mat Mat Matter Collected 1323 | 219 405 375 324 Remotely . | . . . . Salvage Created 1977 | . 728 675 574 Parts 121 | . 52 44 25 Haulers Intercepted . | . . . . Recyclers Shooed 4 | . 3 1 . Parts Field Recycled . | . . . . Retrieved Matter . | . . . . Parts Self-Destructed . | . . . . Prevented . | . . . . Kills | -11 -10 -9 -8 ------- Run | Yrd Mat Mat Mat Combat Hostiles Destroyed 34 | . 14 13 7 Guns 14 | . 5 5 4 Cannons 20 | . 9 8 3 Classes Destroyed 9 | . 6 2 1 Worker 3 | . 3 . . Builder 1 | . . . 1 Recycler 5 | . 2 1 2 Operator 1 | . 1 . . Watcher 7 | . 3 3 1 Swarmer 4 | . 4 . . Grunt 25 | . 10 9 6 Duelist 2 | . . 1 1 Sentry 3 | . . 3 . Best Kill Streak 5 | . 4 4 5 Combat Bots Only 3 | . 2 3 3 Max Kills in Single Turn 2 | . 2 1 1 Gunslinging . | . . . . Exploded . | . . . . Melee . | . . . . Uniques/NPCs Destroyed . | . . . . Combat | -11 -10 -9 -8 -------- Run | Yrd Mat Mat Mat Hostile Shots Fired 286 | . 107 80 99 Missed 65 | . 29 26 10 Damage Taken 3485 | . 855 834 1796 Core 887 | . 156 179 552 Absorbed by Shields . | . . . . Core Remaining (%) 64 | 100 37 55 . Volleys Fired 146 | . 57 45 44 Largest 3 | . 2 2 3 Hottest 180 | . 80 83 180 Shots Fired 267 | . 114 90 63 Gun 145 | . 68 45 32 Cannon 122 | . 46 45 31 Launcher . | . . . . Special . | . . . . Kinetic 104 | . 59 45 . Thermal 163 | . 55 45 63 Explosive . | . . . . Electromagnetic . | . . . . Robot Hit Streak 10 | . 10 6 10 Robot Miss Streak 5 | . 5 5 5 Penetration Max . | . . . . Secondary Targets . | . . . . Shots Hit Robots 156 | . 56 58 42 Core Hits 83 | . 32 30 21 Critical Kills . | . . . . Critical Parts Destroyed . | . . . . Critical Strikes 3 | . 2 . 1 Burn 3 | . 2 . 1 Melee Attacks . | . . . . Impact . | . . . . Slashing . | . . . . Piercing . | . . . . Sneak Attacks . | . . . . Combat Hostiles . | . . . . Follow-up Attacks . | . . . . Damage Inflicted 2959 | . 967 1092 900 Guns 1351 | . 414 544 393 Cannons 1598 | . 543 548 507 Explosions . | . . . . Melee . | . . . . Ramming 10 | . 10 . . Kinetic 901 | . 357 544 . Thermal 2048 | . 600 548 900 Explosive . | . . . . Electromagnetic . | . . . . Impact . | . . . . Slashing . | . . . . Piercing . | . . . . Highest Corruption . | . . . . Average Corruption . | . . . . Corruption Purged . | . . . . Corruption Blocked . | . . . . Overload Shots . | . . . . Overflow Damage 7 | . . 7 . Projectiles 7 | . . 7 . Explosions . | . . . . Melee . | . . . . Knockbacks . | . . . . Impact . | . . . . Kinetic . | . . . . Secondary . | . . . . Self-Inflicted Damage . | . . . . Shots . | . . . . Rammed . | . . . . Targets Rammed 4 | . 4 . . Kicked 4 | . 4 . . Crushed . | . . . . Highest Temperature 745 | . 340 363 745 Average Temperature 177 | . 105 93 380 Received Heat Transfer 1536 | . 396 375 765 Effects 69 | . 3 . 66 Shutdowns 13 | . . . 13 Energy Bleed 8 | . 3 . 5 Interference 10 | . . . 10 Matter Decay 4 | . . . 4 Short Circuit 5 | . . . 5 Damage (minor) 5 | . . . 5 Damage (major) 21 | . . . 21 Damage (core) 3 | . . . 3 Siege Activations . | . . . . Robots Corrupted . | . . . . Combat Hostiles . | . . . . Parts Fried . | . . . . Impact Corruptions . | . . . . Robots Melted . | . . . . Combat Hostiles . | . . . . Parts Melted 8 | . 2 1 5 Heat Transferred 4107 | . 1443 888 1776 Parts Sabotaged . | . . . . Parts Stolen . | . . . . Parts Stripped . | . . . . Power Chain Reactions . | . . . . Alert | -11 -10 -9 -8 ------- Run | Yrd Mat Mat Mat Peak Influence 377 | . 304 377 193 Initial 140 | . . 46 140 Average 146 | . 136 206 120 Maximum Alert Level 1 | . 1 1 . Low Security (%) 75 | 100 78 48 100 Level 1 24 | . 21 51 . Level 2 . | . . . . Level 3 . | . . . . Level 4 . | . . . . Level 5 . | . . . . High Security . | . . . . Max Security . | . . . . Squads Dispatched 4 | . 4 . . Investigation 2 | . 2 . . Extermination . | . . . . Reinforcement 2 | . 2 . . Assault . | . . . . Garrison . | . . . . Intercept . | . . . . Searches Triggered . | . . . . Construction Impeded . | . . . . Haulers Reinforced . | . . . . Active Scanning Responses . | . . . . Cargo Convoy Interrupts . | . . . . Stealth | -11 -10 -9 -8 --------- Run | Yrd Mat Mat Mat Distress Signals 3 | . 1 2 . Communications Jammed . | . . . . Distress Signals . | . . . . Times Spotted 52 | . 23 19 10 Peak Tracking Total 4 | . 4 4 4 Tactical Retreats 3 | . 2 1 . Traps | -11 -10 -9 -8 ------- Run | Yrd Mat Mat Mat Traps Triggered 2 | . 1 1 . Indirectly . | . . . . Trap Hack Attempts . | . . . . Triggered . | . . . . Disarmed . | . . . . Reprogrammed . | . . . . Reused . | . . . . Traps Extracted . | . . . . Installed . | . . . . Triggered . | . . . . Machines | -11 -10 -9 -8 ---------- Run | Yrd Mat Mat Mat Machines Disabled 1 | . . 1 . Max in Single Turn 1 | . . 1 . Machines Repaired . | . . . . Machines Dismantled . | . . . . Machines Sabotaged . | . . . . Overloaded Fab Kills . | . . . . Hacking | -11 -10 -9 -8 --------- Run | Yrd Mat Mat Mat Machines Accessed 8 | . 5 3 . Terminals 5 | . 3 2 . Fabricators . | . . . . Repair Stations . | . . . . Recycling Units 3 | . 2 1 . Scanalyzers . | . . . . Garrison Access . | . . . . Total Hacks 23 | . 14 9 . Successful 11 | . 5 6 . Failed 12 | . 9 3 . Catastrophic 2 | . 2 . . Database Lockouts . | . . . . Manual 4 | . 3 1 . Terminals 15 | . 9 6 . Fabricators . | . . . . Repair Stations . | . . . . Recycling Units 8 | . 5 3 . Scanalyzers . | . . . . Garrison Access . | . . . . Terminal Hacks 7 | . 3 4 . Prototype ID Bank 1 | . 1 . . Emergency Access Points 1 | . . 1 . Recycling Unit Index 1 | . 1 . . Locate Traps 2 | . 1 1 . Zone Layout 2 | . . 2 . Fabricator Hacks . | . . . . Repair Station Hacks . | . . . . Recycling Unit Hacks 2 | . 1 1 . Retrieve Components 2 | . 1 1 . Scanalyzer . | . . . . Garrison Access Hacks . | . . . . Unauthorized Hacks 2 | . 1 1 . Terminals . | . . . . Fabricators . | . . . . Repair Stations . | . . . . Recycling Units 2 | . 1 1 . Reject 2 | . 1 1 . Scanalyzers . | . . . . Garrison Access . | . . . . Data Cores Recovered . | . . . . Used . | . . . . Hacking Detections 8 | . 5 3 . Full Trace Events 1 | . 1 . . Feedback Events . | . . . . Feedback Blocked . | . . . . Robot Schematics Acquired . | . . . . Robots Built . | . . . . Authchips . | . . . . Time . | . . . . Total Robot Build Rating . | . . . . Part Schematics Acquired . | . . . . Parts Built . | . . . . Authchips . | . . . . Time . | . . . . Total Part Build Rating . | . . . . Parts Repaired . | . . . . Time . | . . . . Parts Recycled . | . . . . Recycled Matter . | . . . . Retrieved Matter . | . . . . Retrieved Components 19 | . 10 9 . Parts Scanalyzed . | . . . . Part Schematics Acquired . | . . . . Parts Damaged . | . . . . Bothacking | -11 -10 -9 -8 ------------ Run | Yrd Mat Mat Mat Used RIF Installer . | . . . . Robots Hacked . | . . . . Non-combat . | . . . . Combat . | . . . . Robot Hacks Applied . | . . . . Relay Couplers Released . | . . . . Fabnet Peak Effective % . | . . . . Robots Rewired . | . . . . Allies Hacked . | . . . . Hacks Repelled . | . . . . Allies | -11 -10 -9 -8 -------- Run | Yrd Mat Mat Mat Total Allies . | . . . . Largest Group . | . . . . Highest-Rated Group . | . . . . Highest-Rated Ally . | . . . . Total Orders . | . . . . Ally Attacks . | . . . . Total Damage . | . . . . Kills . | . . . . Allies Corrupted . | . . . . Allies Melted . | . . . . Intel | -11 -10 -9 -8 ------- Run | Yrd Mat Mat Mat Robot Analysis Total . | . . . . Derelict Logs Recovered . | . . . . Drone Launches . | . . . . Drone Recoveries . | . . . . Exploration | -11 -10 -9 -8 ------------- Run | Yrd Mat Mat Mat Turns Passed 2354 | 119 1134 661 440 Spaces Moved 1464 | 80 746 402 236 Core 14 | 4 . . 10 Treads 5 | 4 . 1 . Legs 1445 | 72 746 401 226 Wheels . | . . . . Hover . | . . . . Flight . | . . . . Fastest Speed 50 | 50 120 90 50 Average Speed 115 | 120 120 109 111 Slowest Speed 190 | 190 120 160 185 Overloaded Moves . | . . . . Propulsion Burnouts . | . . . . Robots Hopped . | . . . . Cave-ins Triggered . | . . . . Exploration Rate (%) 31 | 6 76 30 13 Regions Visited 3 Branch Regions . Pre-discovered Areas . | . . . . Known Exits Taken 2 | . 1 1 . Unknown Exits Taken 1 | 1 . . . Scrap Searched . | . . . . Spaces Dug . | . . . . Terrain Destroyed 8 | . . 4 4 Melee . | . . . . Projectile 8 | . . 4 4 AOE . | . . . . Terrain Rammed . | . . . . Walls Destroyed . | . . . . Machines Disabled . | . . . . Actions | -11 -10 -9 -8 --------- Run | Yrd Mat Mat Mat Total 1860 | 98 876 541 345 Wait 107 | 5 24 44 34 Move 1461 | 79 745 401 236 Hop . | . . . . Pick Up 26 | 6 8 10 2 Fast Attach 26 | 6 4 3 13 Attach 13 | . 2 4 7 Detach 2 | . . 2 . Swap 35 | 2 13 13 7 Drop 40 | . 19 19 2 Fire 146 | . 57 45 44 Melee . | . . . . Ram . | . . . . Kick 4 | . 4 . . Crush . | . . . . Escape Stasis . | . . . . Rewire . | . . . . Trap . | . . . . Miscellaneous . | . . . . Route ------- -11/Scrapyard -10/Materials (discovered 4 exits: *Mat x2 / *Min x2) -9/Materials (discovered 2 exits: *Mat / *Min) -8/Materials History --------- Turn | Location | Event 9 | -11/Scrapyard | Discovered new exit (range 16) 120 | -11/Scrapyard | Entered Materials 307 | -10/Materials | Build established: Mutant 395 | -10/Materials | Core integrity fell below 50% 448 | -10/Materials | Discovered new exit (range 8) 588 | -10/Materials | Discovered new exit (range 16) 807 | -10/Materials | Discovered new exit (range 16) 947 | -10/Materials | Discovered new exit (range 10) 1047 | -10/Materials | Identified exit to Mines 1153 | -10/Materials | Identified exit to Materials 1254 | -10/Materials | Entered another Materials area 1254 | -9/Materials | Evolved 2 slots: Propulsion x1, Utility x1 1770 | -9/Materials | Discovered new exit (range 15) 1863 | -9/Materials | Discovered new exit (range 16) 1869 | -9/Materials | Identified exit to Mines 1877 | -9/Materials | Identified exit to Materials 1915 | -9/Materials | Entered another Materials area 1915 | -8/Materials | Evolved 2 slots: Power x1, Weapon x1 2089 | -8/Materials | Core integrity fell below 50% 2153 | -8/Materials | Lost 14 parts (3p3n3u5w) 2235 | -8/Materials | Core integrity fell below 20% 2355 | -8/Materials | Destroyed by H-55 Commando with Assault Rifle Last Messages --------------- Acquired Lgt. Angular Momentum Engine. Acquired 10 matter. R-06 Scavenger collects Com. Wheel. Acquired Particle Gun. Acquired 20 matter. R-06 Scavenger collects Com. Wheel. Dropped Aluminum Leg. Acquired 10 matter. R-06 Scavenger collects Lgt. Ion Engine. Dropped Aluminum Leg. K-01 Serf collects debris. Acquired 10 matter. R-06 Scavenger collects Aluminum Leg. K-01 Serf collects debris. Com. Wheel melted. R-06 Scavenger destroyed. K-01 Serf collects debris. Discarded Signal Interpreter. Acquired 10 matter. K-01 Serf collects debris. Map ----- +----------------------------------------------------+ | ?????????????##?#????# # ##???????????? | | ?????????#?????#????## #########???????????? | | ??????????#???#??????# #???????????????????? | | ???????????????###??## #????#????#?????????? | | ???????????##??##?#??# #???#?#?????????????? | | ??????????????????#??# #??????##???????????? | | ?????????????????????# #?##?#??##??????????? | | ?????????#???????##??# #??#???##???????????? | | ???????????########### ##??##??????????????? | | ???????????# # #??#????????????????? | | ???????????# """"" # #???##?#????????????? | | ???????????# """"" # ! #???#??##???????????? | | ???????????# """"" %+=% #??????##?#?????????? | | ???????????# # !##?#???#????????????? | | ???????????# #%* #???????????????????? | | ???????????# #%==#############???????? | | ???????????# #== # #???????? | | ???????????########### %!# #???????? | | ????????????????#?##?# # """ #???????? | | ??????????#????#?????# + """"" #???????? | | ?????????#?#??????#??# # """"" #???????? | | ????????????##??#???## # """"" #???????? | | ????????#????#?#?????# # """ #???????? | | ???????????????#?????# ###########?????????? | | ??????????????????#### #?#?#??##???????????? | | ?????????????????##! @% ##????#?#???????????? | | ??????????????#??#! ########??#?????????? | | ?????????????????#! k w #####????????? | | ???????????#??##?#! h ???????? | | ??????????#?????##! #####????????? | | ?????????#?????#?##! #????????????? | | ??????????????????#### #????????????? | | ???????????#???????? #????????????? | | ?????????????????? #????????????? | | ???????????????? a #????????????? | | ?????????????? ??????????? | | ?????????????# ####?????????? | | ?????????????# #????????????? | | ?????????????# """ """ """ #????????????? | | ?????????????# """ """ """ #????????????? | | ?????????????+ """ """ """ #????????????? | | ?????????????# ??? ? ????#????????????? | | ?????????????#????? ??? ????????????????? | | ??????????????????"" ??? ""????????????????? | | ???????????????????" ???? "?????????????????? | | ???????????????????" ???????????????????????? | | ???????????????????? ????????????????????????? | | ?????????????????????????????????????????????? | | ?????????????????????????????????????????????? | | ?????????????????????????????????????????????? | +----------------------------------------------------+ Best States ------------- Heat Dissipation 45 Energy Generation 27 Energy Capacity 250 Matter Stores 300 Matter Capacity 300 Sight Range 16 Terrain Scan Range 14 Terrain Scan Density 85 Armor Coverage 150 Power Shielding 33 Weapon Shielding 33 Evasion (%) 57 Recoil Reduction 1 Item Schematics ----------------- None Robot Schematics ------------------ None Fabricated ------------ Nothing Alien Tech Used ----------------- None Achievements -------------- None Challenges ------------ None Game ------ Seed CloakFusionAutocannon Manual? 0 Play Time 00:49:07 Cumulative 10.6 hours Start 2025.02.27 @ 14:29:54 End 2025.02.28 @ 20:48:25 Sessions 3 Manual Loads 0 Difficulty Rogue Special Mode None Game No. 7 Rogue 4 Adventurer 3 Explorer 0 Win Type - Total 0 Types 0/0/0/0/0/0/0/0/0 Lore% 10 Gallery% 10 Achievement% 13 Wizard Run 0 Options --------- Layout 1 ASCII 0 Keyboard 1 Movement Arrows Keybinds 0 Fullscreen 1 Font 32/Smallcaps Map View 50x35 Zoom Use 0% Tactical HUD 0 Map Filters NONE Filters NONE Steam 1 RUN: c618dc53-f74d-4780-9874-e9926209f030